bitfinex-derivatives/quotes_SOLF0:USTF0_20260204
["timestamp","ask_amount","ask_price","bid_price","bid_amount"]
[1770231074275,9.7669,92.334,92.274,9.773]
[1770231074477,3.71160177,92.333,92.263,3.92286753]
[1770231074974,13.34858574,92.444,92.227,152.103]
[1770231074975,8.26040291,92.42,92.282,3.92286753]
[1770231075276,9.7626,92.374,92.32,9.7682]
[1770231075475,8.26040291,92.42,92.32,9.7682]
[1770231076074,9.7624,92.376,92.32,9.7682]
[1770231076378,151.7886,92.419,92.283,3.92286753]
[1770231076572,9.7643,92.357,92.283,3.92286753]
[1770231076772,3.71160177,92.379,92.283,3.92286753]
[1770231076974,3.71160177,92.379,92.306,3.92286753]
[1770231077175,3.71160177,92.399,92.311,3.92286753]
[1770231077576,9.7605,92.394,92.334,9.7667]
[1770231078676,3.71160177,92.399,92.344,9.7657]
[1770231078975,151.7122,92.466,92.28,171.5616]
[1770231078976,3.71160177,92.426,92.351,3.92286753]
[1770231079179,3.71160177,92.426,92.352,9.7648]
[1770231079370,3.71160177,92.426,92.351,3.92286753]
[1770231079371,9.7591,92.407,92.351,3.92286753]
[1770231079577,3.71160177,92.406,92.321,3.92286753]
[1770231080676,9.7596,92.402,92.342,9.7658]
[1770231081683,9.7596,92.402,92.264,32.53]
[1770231081684,3.71160177,92.426,92.35,3.92286753]
[1770231082577,3.71160177,92.426,92.326,3.92286753]
[1770231083473,3.71160177,92.426,92.292,151.9965]
[1770231083474,3.71160177,92.426,92.359,3.92286753]
[1770231084471,3.71160177,92.426,92.321,3.64705376]
[1770231085382,9.7605,92.394,92.337,9.7664]
[1770231085680,3.78065173,92.399,92.337,3.64705376]
[1770231085880,9.7603,92.396,92.342,9.7658]
[1770231086275,9.7603,92.396,92.32,8.26040291]
[1770231086276,9.7579,92.418,92.351,3.64705376]
[1770231086476,3.77020922,92.425,92.351,3.64705376]
[1770231087073,9.7583,92.415,92.36,9.7639]
[1770231087379,3.77020922,92.425,92.351,3.64705376]
[1770231087579,8.26040291,92.48,92.36,8.26040291]
[1770231087783,8.26040291,92.5,92.36,8.26040291]
[1770231087980,3.67980126,92.478,92.372,9.7627]
[1770231088282,3.67980126,92.459,92.361,3.64705376]
[1770231088978,9.7566,92.431,92.371,9.7628]
[1770231089485,9.7566,92.431,92.361,3.64705376]
[1770231089982,9.7575,92.422,92.361,3.64705376]
[1770231090885,9.7584,92.413,92.364,9.7635]
[1770231091184,3.67980126,92.437,92.361,3.64705376]
[1770231091384,9.7566,92.431,92.372,9.7627]
[1770231091684,9.7566,92.431,92.373,3.64705376]
[1770231092188,9.7575,92.422,92.373,3.64705376]
[1770231092980,9.7584,92.414,92.373,3.64705376]
[1770231093779,9.7594,92.404,92.348,9.7652]
[1770231094180,9.7594,92.404,92.348,13.41225376]
[1770231094882,9.7594,92.404,92.354,9.7646]
[1770231095588,9.7594,92.404,92.349,3.64705376]
[1770231096787,9.7603,92.396,92.349,3.64705376]
[1770231096981,3.62945579,92.419,92.349,3.64705376]
[1770231097685,9.7593,92.405,92.351,9.7649]
[1770231098086,9.7593,92.405,92.349,3.64705376]
[1770231098278,19.5086,92.453,92.367,9.7633]
[1770231098484,3.61772435,92.452,92.367,9.7633]
[1770231099390,9.7577,92.421,92.374,9.7624]
[1770231099584,3.61772435,92.433,92.367,3.64705376]
[1770231100289,9.7565,92.431,92.381,9.7617]
[1770231100687,9.7565,92.431,92.317,151.9557]
[1770231100688,3.60985967,92.475,92.39,8.26040291]
[1770231100884,9.7528,92.467,92.391,3.64705376]
[1770231101585,3.60985967,92.475,92.39,8.26040291]
[1770231101586,3.60985967,92.475,92.417,9.758]
[1770231101782,3.60985967,92.475,92.41,3.64705376]
[1770231101986,9.754,92.455,92.41,3.64705376]
[1770231102183,3.60985967,92.475,92.391,3.64705376]
[1770231102887,9.7547,92.448,92.391,3.64705376]
[1770231103691,9.7547,92.448,92.391,13.40775376]
[1770231103887,9.7556,92.44,92.391,3.64705376]
[1770231105392,9.7556,92.44,92.393,9.7605]
[1770231105593,3.55134784,92.457,92.393,9.7605]
[1770231106189,3.55134784,92.457,92.391,3.64705376]
[1770231107092,9.7564,92.433,92.391,3.64705376]
[1770231107789,9.7573,92.424,92.375,9.7623]
[1770231108189,3.49525786,92.44,92.372,3.64705376]
[1770231108689,9.7581,92.417,92.372,3.64705376]
[1770231109190,9.7597,92.401,92.331,3.64705376]
[1770231109792,9.7588,92.41,92.357,9.7643]
[1770231110797,9.7596,92.402,92.351,3.64705376]
[1770231111600,9.7587,92.411,92.354,3.64705376]
[1770231112693,9.7587,92.411,92.356,9.7644]
[1770231112895,3.49525786,92.419,92.354,3.64705376]
[1770231112896,9.7595,92.404,92.354,3.64705376]
[1770231113294,9.7595,92.404,92.311,3.64705376]
[1770231114105,9.7595,92.404,92.353,9.7647]
[1770231114599,3.49525786,92.419,92.343,3.97305257]
[1770231114600,9.7585,92.413,92.343,3.97305257]
[1770231115700,9.7594,92.404,92.343,3.97305257]
[1770231116904,9.7609,92.39,92.343,3.97305257]
[1770231117505,3.53612614,92.403,92.345,9.7656]
[1770231117506,9.76,92.398,92.345,9.7656]
[1770231117895,3.53056665,92.397,92.309,9.94807662]
[1770231118102,3.53056665,92.397,92.31,3.97305257]
[1770231119002,9.7624,92.376,92.31,3.97305257]
[1770231119599,3.53616146,92.38,92.331,9.767]
[1770231120202,8.23707372,92.42,92.31,3.97305257]
[1770231120203,3.53434255,92.419,92.31,3.97305257]
[1770231120501,8.23707372,92.42,92.342,9.7658]
[1770231120502,9.7613,92.386,92.342,9.7658]
[1770231121102,9.7605,92.394,92.342,9.7658]
[1770231121694,9.7595,92.404,92.352,9.7648]
[1770231121896,13.29406808,92.404,92.352,9.7648]
[1770231122408,13.29406808,92.404,92.359,9.7641]
[1770231122604,13.29406808,92.404,92.343,3.92846051]
[1770231123703,13.29406808,92.404,92.35,9.765]
[1770231124305,13.29406808,92.404,92.357,9.7642]
[1770231124903,9.7583,92.414,92.343,3.92846051]
[1770231125109,3.51578625,92.414,92.343,3.92846051]
[1770231125510,3.51578625,92.414,92.372,9.7627]
[1770231126201,3.49800554,92.435,92.382,9.7617]
[1770231127313,3.49800554,92.432,92.361,3.92846051]
[1770231127611,3.49800554,92.432,92.343,3.92846051]
[1770231128207,3.47779324,92.391,92.335,9.7666]
[1770231128602,9.7614,92.386,92.335,9.7666]
[1770231128804,3.47779324,92.391,92.305,3.92846051]
[1770231129006,3.47779324,92.391,92.277,13.2643211]
[1770231129007,8.23707372,92.38,92.285,3.92846051]
[1770231129206,8.23707372,92.38,92.263,13.2643211]
[1770231129207,3.47779324,92.342,92.266,9.7739]
[1770231129507,3.47779324,92.339,92.237,3.92846051]
[1770231129702,3.46838905,92.319,92.252,9.7753]
[1770231129900,19.5269,92.366,92.21,8.23707372]
[1770231129901,3.46838905,92.345,92.253,3.92846051]
[1770231130805,9.7643,92.358,92.285,3.92846051]
[1770231131005,3.46838905,92.357,92.285,3.92846051]
[1770231131310,9.765,92.351,92.285,3.92846051]
[1770231131699,3.46838905,92.357,92.285,3.92846051]
[1770231131905,3.36972818,92.352,92.285,3.92846051]
[1770231132701,9.7654,92.347,92.285,3.92846051]
[1770231133114,9.7654,92.347,92.224,13.2643211]
[1770231133115,3.36972818,92.346,92.262,3.92846051]
[1770231133308,9.7679,92.324,92.262,3.92846051]
[1770231133512,3.36972818,92.346,92.262,3.92846051]
[1770231133915,3.36972818,92.346,92.263,3.92846051]
[1770231134310,3.350619,92.345,92.278,9.7726]
[1770231134610,3.350619,92.345,92.279,3.92846051]
[1770231135014,3.350619,92.345,92.292,9.7711]
[1770231135312,3.350619,92.365,92.293,3.92846051]
[1770231135917,3.36716461,92.385,92.293,3.92846051]
[1770231136307,8.23707372,92.42,92.293,3.92846051]
[1770231136308,3.36716461,92.374,92.293,3.92846051]
[1770231137918,9.764,92.36,92.298,9.7705]
[1770231138117,3.29946125,92.359,92.293,3.92846051]
[1770231139116,3.29946125,92.355,92.281,3.92846051]
[1770231139510,3.29658722,92.351,92.281,3.92846051]
[1770231140111,3.29658722,92.351,92.292,9.7711]
[1770231140315,3.29658722,92.351,92.292,13.69956051]
[1770231141509,3.29658722,92.351,92.3,9.7703]
[1770231142112,13.06168722,92.351,92.292,3.92846051]
[1770231142819,3.29658722,92.351,92.292,3.92846051]
[1770231143013,3.29578418,92.372,92.292,3.92846051]
[1770231143522,13.05868418,92.372,92.312,9.7691]
[1770231144020,3.28382839,92.371,92.312,9.7691]
[1770231144716,9.763,92.37,92.312,9.7691]
[1770231144912,3.28382839,92.369,92.312,9.7691]
[1770231145821,9.7634,92.366,92.312,9.7691]
[1770231146219,9.759,92.408,92.323,3.67353791]
[1770231146425,8.23707372,92.45,92.294,151.9939]
[1770231146426,3.27026151,92.429,92.331,3.67353791]
[1770231146726,10.06868727,92.456,92.304,151.9774]
[1770231146727,3.27026151,92.454,92.363,3.67353791]
[1770231147018,3.27026151,92.454,92.371,3.67353791]
[1770231147222,3.27026151,92.475,92.416,9.758]
[1770231147418,13.2643211,92.521,92.352,151.8984]
[1770231147419,3.27026151,92.504,92.401,3.67353791]
[1770231147814,3.3857293,92.524,92.455,9.7539]
[1770231148220,3.3857293,92.524,92.456,3.67353791]
[1770231148723,3.3857293,92.524,92.461,9.7533]
[1770231149218,3.3857293,92.55,92.473,3.67353791]
[1770231149618,3.2775683,92.57,92.494,3.67353791]
[1770231150018,3.2775683,92.57,92.47,8.23707372]
[1770231150218,3.2775683,92.562,92.471,3.67353791]
[1770231150615,3.2775683,92.585,92.471,3.67353791]
[1770231151012,3.2775683,92.57,92.492,9.75]
[1770231151216,3.2775683,92.57,92.471,3.67353791]
[1770231151618,3.2827157,92.551,92.471,3.67353791]
[1770231152514,3.2827157,92.533,92.471,3.67353791]
[1770231152716,3.2827157,92.533,92.451,3.67353791]
[1770231153320,3.2827157,92.53,92.451,3.67353791]
[1770231154526,3.27084158,92.516,92.431,3.67353791]
[1770231155119,9.7491,92.502,92.431,3.67353791]
[1770231155324,3.27084158,92.537,92.435,3.67353791]
[1770231156028,151.4847,92.605,92.389,151.8372]
[1770231156029,3.1751183,92.559,92.451,3.67353791]
[1770231156323,3.1751183,92.559,92.471,3.67353791]
[1770231156626,9.7432,92.558,92.475,9.7518]
[1770231156828,9.7432,92.558,92.476,3.67353791]
[1770231157131,3.1751183,92.599,92.491,3.67353791]
[1770231157429,3.1751183,92.599,92.497,3.67353791]
[1770231157430,9.7404,92.584,92.497,3.67353791]
[1770231157618,3.1751183,92.599,92.497,3.67353791]
[1770231157818,9.744,92.55,92.497,3.67353791]
[1770231158227,9.744,92.55,92.479,3.67353791]
[1770231159224,9.7455,92.536,92.479,3.67353791]
[1770231159828,9.7466,92.525,92.479,3.67353791]
[1770231160031,3.10943275,92.548,92.44,8.23707372]
[1770231160833,9.7479,92.513,92.446,9.7548]
[1770231161133,9.7479,92.513,92.44,8.23707372]
[1770231161333,9.7466,92.525,92.454,9.754]
[1770231161934,3.80438113,92.559,92.443,3.67353791]
[1770231162630,9.745,92.541,92.467,3.67353791]
[1770231163430,9.7423,92.566,92.499,3.67353791]
[1770231163628,3.80438113,92.579,92.501,3.67353791]
[1770231165530,9.7443,92.547,92.501,3.67353791]
[1770231165933,3.80438113,92.559,92.461,3.67353791]
[1770231166330,3.80438113,92.539,92.465,3.67353791]
[1770231166737,3.80438113,92.539,92.421,3.67353791]
[1770231167039,3.80438113,92.539,92.42,8.23707372]
[1770231167040,9.7495,92.498,92.443,3.67353791]
[1770231167636,3.80438113,92.519,92.443,3.67353791]
[1770231167840,3.80438113,92.519,92.419,3.67353791]
[1770231168341,3.80438113,92.49,92.394,3.67353791]
[1770231168729,3.80438113,92.49,92.401,3.67353791]
[1770231169441,9.7521,92.474,92.413,3.67353791]
[1770231169637,9.7521,92.474,92.357,151.889]
[1770231169638,3.80438113,92.521,92.421,3.67353791]
[1770231170037,9.7459,92.532,92.472,9.7522]
[1770231170441,3.80438113,92.542,92.472,9.7522]
[1770231170737,3.80438113,92.542,92.441,3.67353791]
[1770231171443,9.7487,92.506,92.452,3.67353791]
[1770231172740,3.80438113,92.542,92.452,3.67353791]
[1770231173248,9.7488,92.505,92.452,3.67353791]
[1770231173839,3.80438113,92.542,92.452,3.67353791]
[1770231174547,3.9384619,92.518,92.452,3.67353791]
[1770231174845,3.9384619,92.518,92.431,3.92490954]
[1770231176037,9.7488,92.505,92.452,9.7543]
[1770231176647,9.7488,92.505,92.42,8.23707372]
[1770231176648,9.7477,92.515,92.457,9.7537]
[1770231176843,3.9384619,92.539,92.458,3.92490954]
[1770231177241,3.9384619,92.539,92.462,13.67810954]
[1770231177440,3.9384619,92.539,92.463,3.92490954]
[1770231177942,19.4826,92.576,92.463,3.92490954]
[1770231177943,3.9384619,92.562,92.463,3.92490954]
[1770231178339,9.7453,92.538,92.489,9.7503]
[1770231178542,9.7453,92.538,92.484,3.92490954]
[1770231179448,3.9384619,92.562,92.484,3.92490954]
[1770231179852,3.9384619,92.562,92.464,13.47984592]
[1770231180551,3.9384619,92.562,92.473,3.72684592]
[1770231181148,9.7445,92.545,92.491,9.7502]
[1770231181350,3.9384619,92.562,92.492,3.72684592]
[1770231181649,3.68437958,92.583,92.492,3.72684592]
[1770231182152,9.7429,92.561,92.494,3.72684592]
[1770231182653,27.68004993,92.6,92.47,8.20254993]
[1770231182654,3.68437958,92.56,92.479,9.7514]
[1770231182850,3.68437958,92.56,92.474,3.72684592]
[1770231183149,3.68437958,92.54,92.453,3.72684592]
[1770231183650,9.7498,92.495,92.453,3.72684592]
[1770231183854,9.7498,92.495,92.432,3.72684592]
[1770231184052,3.68437958,92.516,92.432,3.72684592]
[1770231184252,3.68437958,92.516,92.356,10.07737447]
[1770231184253,3.68437958,92.516,92.411,3.72684592]
[1770231184456,3.68437958,92.494,92.411,3.72684592]
[1770231185457,9.7534,92.461,92.411,3.72684592]
[1770231185956,3.68437958,92.494,92.411,3.72684592]
[1770231186453,9.7531,92.464,92.392,3.72684592]
[1770231186658,3.68437958,92.471,92.392,3.72684592]
[1770231187350,9.7542,92.454,92.394,9.7604]
[1770231187550,3.68437958,92.492,92.395,3.72684592]
[1770231188753,9.7539,92.456,92.395,3.72684592]
[1770231188959,3.68437958,92.473,92.395,3.72684592]
[1770231189157,3.68437958,92.473,92.374,3.72684592]
[1770231189862,9.7561,92.436,92.374,3.72684592]
[1770231190360,9.7549,92.447,92.384,3.72684592]
[1770231190560,3.68437958,92.451,92.384,3.72684592]
[1770231191159,3.68437958,92.495,92.391,3.72684592]
[1770231191360,9.751,92.484,92.423,9.7573]
[1770231191754,3.68437958,92.517,92.419,3.72684592]
[1770231191950,9.746,92.532,92.465,3.72684592]
[1770231192355,3.68437958,92.537,92.465,3.72684592]
[1770231192563,9.7466,92.526,92.465,3.72684592]
[1770231192762,3.68437958,92.537,92.465,3.72684592]
[1770231193058,3.68437958,92.537,92.442,3.72684592]
[1770231193263,3.68437958,92.537,92.416,3.72684592]
[1770231193560,3.68437958,92.537,92.431,3.72684592]
[1770231194763,3.68437958,92.516,92.435,3.72684592]
[1770231195560,9.7517,92.477,92.415,13.48504592]
[1770231195757,3.68437958,92.497,92.416,3.72684592]
[1770231196160,9.7517,92.478,92.422,9.7574]
[1770231197558,9.7525,92.47,92.416,3.72684592]
[1770231197959,9.7524,92.47,92.416,3.72684592]
[1770231198366,3.68437958,92.497,92.416,3.72684592]
[1770231198966,9.7522,92.473,92.418,3.72684592]
[1770231200561,9.7511,92.483,92.424,3.72684592]
[1770231200758,3.68437958,92.497,92.424,3.72684592]
[1770231201365,9.7501,92.493,92.434,13.48294592]
[1770231201563,3.68437958,92.518,92.435,3.72684592]
[1770231201959,9.7499,92.494,92.438,9.7557]
[1770231202166,3.68437958,92.518,92.439,3.72684592]
[1770231202767,9.7498,92.495,92.44,9.7555]
[1770231203062,3.68437958,92.518,92.441,3.72684592]
[1770231203266,9.7488,92.504,92.454,3.72684592]
[1770231203768,19.4885,92.548,92.454,3.72684592]
[1770231203769,3.68437958,92.537,92.454,3.72684592]
[1770231203968,9.7484,92.509,92.459,9.7535]
[1770231204158,19.4885,92.548,92.434,3.67493261]
[1770231204159,3.91565604,92.518,92.434,3.67493261]
[1770231204361,9.7509,92.485,92.434,3.67493261]
[1770231204561,3.91565604,92.518,92.434,3.67493261]
[1770231204963,9.7509,92.484,92.434,3.67493261]
[1770231205164,3.91565604,92.5,92.415,3.67493261]
[1770231205566,3.91565604,92.5,92.425,9.7571]
[1770231206069,3.91565604,92.5,92.425,3.67493261]
[1770231206265,9.7509,92.485,92.425,3.67493261]
[1770231206569,3.91565604,92.5,92.4,3.67493261]
[1770231206767,3.91565604,92.475,92.4,3.67493261]
[1770231207169,151.6138,92.526,92.4,3.67493261]
[1770231207170,3.91565604,92.509,92.401,3.67493261]
[1770231208164,3.91565604,92.509,92.428,3.67493261]
[1770231208563,9.7494,92.499,92.438,9.7557]
[1770231208767,3.91565604,92.509,92.438,9.7557]
[1770231209062,9.751,92.484,92.436,9.7559]
[1770231209266,3.91565604,92.509,92.428,3.67493261]
[1770231209469,10.05862741,92.533,92.428,3.67493261]
[1770231209667,9.7492,92.501,92.441,3.67493261]
[1770231209868,3.91565604,92.532,92.441,3.67493261]
[1770231210470,9.748,92.512,92.46,9.7534]
[1770231210775,3.91565604,92.532,92.441,3.67493261]
[1770231210976,3.91565604,92.528,92.411,3.67493261]
[1770231211373,3.91565604,92.5,92.406,3.67493261]
[1770231211972,3.91565604,92.5,92.416,3.67493261]
[1770231212373,9.7546,92.45,92.395,3.67493261]
[1770231213276,9.7535,92.46,92.397,3.67493261]
[1770231213472,3.91565604,92.469,92.397,3.67493261]
[1770231214479,9.7535,92.46,92.398,13.43493261]
[1770231214777,3.91565604,92.469,92.398,3.67493261]
[1770231215476,9.7553,92.443,92.398,3.67493261]
[1770231215874,9.7553,92.443,92.378,3.67493261]
[1770231216174,9.7553,92.443,92.38,3.67493261]
[1770231216379,9.7563,92.433,92.38,3.67493261]
[1770231219873,3.91565604,92.45,92.38,3.67493261]
[1770231220073,3.91565604,92.45,92.361,3.67493261]
[1770231220677,9.7592,92.406,92.361,3.67493261]
[1770231221776,9.7582,92.415,92.361,3.67493261]
[1770231222280,3.91565604,92.427,92.361,3.67493261]
[1770231222983,3.91565604,92.427,92.284,19.8635796]
[1770231222984,3.91565604,92.473,92.37,8.20254993]
[1770231223183,9.755,92.446,92.374,3.67493261]
[1770231223381,3.91565604,92.445,92.374,3.67493261]
[1770231224386,9.7553,92.443,92.374,3.67493261]
[1770231224888,3.91565604,92.445,92.374,3.67493261]
[1770231225082,3.91565604,92.445,92.376,3.67493261]
[1770231225288,3.91565604,92.445,92.356,3.67493261]
[1770231225886,3.91565604,92.445,92.34,8.20254993]
[1770231225887,9.7573,92.424,92.357,3.67493261]
[1770231227985,3.91565604,92.412,92.34,9.7661]
[1770231228190,3.91565604,92.412,92.338,3.67493261]
[1770231229589,9.7605,92.394,92.338,3.67493261]
[1770231229891,3.91565604,92.412,92.338,3.67493261]
[1770231230382,3.91565604,92.412,92.341,3.67493261]
[1770231230891,3.91565604,92.455,92.361,3.67493261]
[1770231231385,3.91565604,92.455,92.387,3.67493261]
[1770231232683,3.91565604,92.455,92.361,3.67493261]
[1770231233084,9.757,92.427,92.362,3.67493261]
[1770231233286,3.91565604,92.455,92.362,3.67493261]
[1770231233688,8.20254993,92.48,92.365,9.7635]
[1770231233689,9.7569,92.428,92.365,9.7635]
[1770231234287,9.7579,92.418,92.362,3.67493261]
[1770231234887,9.7589,92.409,92.362,3.67493261]
[1770231235096,3.91565604,92.437,92.362,3.67493261]
[1770231237793,3.88213775,92.417,92.343,3.92229197]
[1770231238190,9.7603,92.395,92.343,3.92229197]
[1770231239393,9.7612,92.387,92.343,3.92229197]
[1770231239886,3.98317686,92.43,92.321,3.68836677]
[1770231240086,3.98317686,92.43,92.268,19.5475]
[1770231240087,3.98317686,92.502,92.391,3.68836677]
[1770231240294,8.20254993,92.55,92.411,3.68836677]
[1770231240494,3.98317686,92.527,92.433,3.68836677]
[1770231242193,3.98317686,92.496,92.408,3.68836677]
[1770231243800,3.98317686,92.471,92.387,3.68836677]
[1770231245300,3.98317686,92.492,92.387,3.68836677]
[1770231245502,3.98317686,92.492,92.325,20.09234738]
[1770231245503,3.98317686,92.492,92.401,3.68836677]
[1770231245701,3.98317686,92.492,92.4,8.20956353]
[1770231245702,3.98317686,92.492,92.403,3.68836677]
[1770231245890,3.98317686,92.492,92.404,11.91842193]
[1770231246095,3.98317686,92.492,92.405,8.23005516]
[1770231246296,3.98317686,92.492,92.407,3.68836677]
[1770231246596,3.98317686,92.492,92.409,3.68836677]
[1770231246797,3.98317686,92.492,92.411,3.68836677]
[1770231247103,9.7502,92.491,92.421,3.68836677]
[1770231247301,9.7502,92.491,92.422,11.91842193]
[1770231247501,3.98317686,92.492,92.423,8.23005516]
[1770231247795,3.98317686,92.492,92.424,8.23005516]
[1770231248001,3.98317686,92.492,92.425,8.23005516]
[1770231248297,9.7478,92.514,92.441,3.68836677]
[1770231248492,9.7478,92.514,92.443,3.68836677]
[1770231248692,9.7478,92.514,92.444,8.23005516]
[1770231248891,9.7478,92.514,92.443,3.68836677]
[1770231248892,3.98317686,92.508,92.443,3.68836677]
[1770231249190,3.98317686,92.508,92.444,8.23021413]
[1770231249397,3.98317686,92.508,92.443,3.68836677]
[1770231250197,3.98317686,92.508,92.444,8.22975363]
[1770231250398,3.98317686,92.508,92.443,3.68836677]
[1770231250599,9.7496,92.497,92.443,3.68836677]
[1770231250805,3.98317686,92.508,92.421,3.68836677]
[1770231251006,151.5754,92.549,92.422,8.23083236]
[1770231251007,3.98317686,92.485,92.422,8.23083236]
[1770231251200,3.98317686,92.485,92.403,3.68836677]
[1770231251503,3.98317686,92.485,92.38,8.20956353]
[1770231251504,3.98317686,92.505,92.405,3.68836677]
[1770231251696,3.98317686,92.505,92.425,13.44546677]
[1770231251894,3.98317686,92.505,92.426,8.23275666]
[1770231252104,3.98317686,92.505,92.427,8.23275666]
[1770231252298,3.98317686,92.505,92.428,8.23275666]
[1770231252601,9.7509,92.485,92.429,8.23275666]
[1770231252800,9.7509,92.485,92.43,8.23275666]
[1770231253104,9.7509,92.485,92.431,8.23275666]
[1770231253307,9.7509,92.485,92.432,8.23275666]
[1770231253506,9.7509,92.485,92.425,3.68836677]
[1770231253507,9.7509,92.485,92.433,8.23275666]
[1770231253704,9.7509,92.485,92.434,8.23275666]
[1770231253899,9.7509,92.485,92.435,8.23275666]
[1770231254100,9.7509,92.485,92.425,3.68836677]
[1770231254301,9.7509,92.485,92.426,11.91974009]
[1770231254500,9.7509,92.485,92.427,11.91974009]
[1770231254696,3.98317686,92.482,92.406,3.68836677]
[1770231255004,3.98317686,92.482,92.407,8.23346023]
[1770231255196,3.98317686,92.482,92.408,8.23346023]
[1770231255400,3.98317686,92.482,92.409,8.23346023]
[1770231255600,3.98317686,92.482,92.411,3.68836677]
[1770231255804,3.98317686,92.482,92.413,3.68836677]
[1770231255998,3.98317686,92.482,92.415,3.68836677]
[1770231256206,3.98317686,92.482,92.416,8.23346023]
[1770231256503,3.98317686,92.502,92.422,3.68836677]
[1770231256696,3.98317686,92.502,92.424,3.68836677]
[1770231256896,3.98317686,92.502,92.425,3.68836677]
[1770231256897,9.7524,92.47,92.425,3.68836677]
[1770231259310,3.98317686,92.466,92.403,3.68836677]
[1770231259801,3.98317686,92.466,92.386,9.7613]
[1770231259802,9.7555,92.441,92.386,9.7613]
[1770231260002,9.7555,92.441,92.387,3.68836677]
[1770231260198,9.7555,92.441,92.388,8.23779512]
[1770231260402,3.98317686,92.486,92.398,3.68836677]
[1770231260598,3.98317686,92.486,92.4,3.68836677]
[1770231260901,9.7531,92.464,92.403,3.68836677]
[1770231261103,3.98317686,92.486,92.405,3.68836677]
[1770231261602,3.98317686,92.486,92.39,8.20956353]
[1770231261603,3.98317686,92.486,92.406,13.44746677]
[1770231262009,3.98317686,92.486,92.406,3.68836677]
[1770231262509,9.7541,92.454,92.406,3.68836677]
[1770231266212,9.7541,92.454,92.407,8.23775821]
[1770231266401,9.7549,92.447,92.408,8.23775821]
[1770231266607,3.7359874,92.519,92.41,3.95423266]
[1770231266810,3.7359874,92.519,92.412,3.95423266]
[1770231267110,3.7359874,92.519,92.413,12.19199087]
[1770231267310,3.7359874,92.519,92.414,8.23775821]
[1770231267712,3.7359874,92.487,92.421,9.7575]
[1770231267912,3.7359874,92.487,92.422,8.23775821]
[1770231268310,9.7525,92.469,92.422,8.23775821]
[1770231268912,3.7359874,92.487,92.422,8.23775821]
[1770231269113,3.7359874,92.487,92.414,3.95423266]
[1770231269315,3.7359874,92.487,92.416,3.95423266]
[1770231269615,9.7525,92.47,92.417,8.23899205]
[1770231269818,9.7525,92.47,92.419,3.95423266]
[1770231270016,9.7525,92.47,92.42,8.23899205]
[1770231270217,9.7525,92.47,92.421,8.23899205]
[1770231270423,9.7516,92.478,92.423,3.95423266]
[1770231270712,9.7516,92.478,92.425,3.95423266]
[1770231270918,9.7516,92.478,92.426,12.19322471]
[1770231271118,9.7516,92.478,92.427,8.23899205]
[1770231271319,9.7516,92.478,92.428,8.23899205]
[1770231271619,9.7516,92.478,92.429,8.23899205]
[1770231271820,9.7516,92.478,92.43,8.23899205]
[1770231272021,9.7516,92.478,92.426,3.95423266]
[1770231272218,9.7516,92.478,92.427,8.23799249]
[1770231272420,9.7507,92.487,92.432,3.95423266]
[1770231272820,3.7359874,92.504,92.432,3.95423266]
[1770231273018,9.7516,92.478,92.432,3.95423266]
[1770231273212,3.7359874,92.487,92.432,3.95423266]
[1770231273814,3.7359874,92.487,92.415,3.95423266]
[1770231274423,9.7527,92.468,92.415,3.95423266]
[1770231274918,3.7359874,92.453,92.398,3.95423266]
[1770231275117,3.7359874,92.453,92.38,3.95423266]
[1770231275713,3.7359874,92.453,92.391,3.95423266]
[1770231275714,13.4901874,92.453,92.391,3.95423266]
[1770231275924,3.7359874,92.453,92.391,3.95423266]
[1770231276124,9.7569,92.428,92.373,3.95423266]
[1770231276519,3.7359874,92.436,92.373,3.95423266]
[1770231276818,9.7567,92.429,92.373,3.95423266]
[1770231277421,9.7567,92.429,92.336,13.40033185]
[1770231277422,3.7359874,92.436,92.356,3.95423266]
[1770231278513,9.7604,92.395,92.356,3.95423266]
[1770231278818,3.7359874,92.412,92.325,3.95423266]
[1770231279413,3.7359874,92.395,92.326,3.95423266]
[1770231280221,9.7612,92.387,92.326,3.95423266]
[1770231280624,3.7359874,92.416,92.326,3.95423266]
[1770231281419,3.7359874,92.462,92.371,3.95423266]
[1770231281727,3.7359874,92.462,92.374,3.95423266]
[1770231281930,3.7359874,92.462,92.375,3.95423266]
[1770231282123,9.7542,92.454,92.398,3.95423266]
[1770231283530,3.7359874,92.462,92.4,13.71393266]
[1770231283919,9.7534,92.461,92.401,3.95423266]
[1770231284119,3.7359874,92.462,92.403,13.71363266]
[1770231284327,3.7359874,92.509,92.403,3.95423266]
[1770231284725,9.7524,92.47,92.415,3.95423266]
[1770231284925,3.7359874,92.486,92.415,3.95423266]
[1770231285331,3.7359874,92.463,92.377,3.95423266]